bitfinex/quotes_ETHUSD_20250519
["timestamp","ask_amount","ask_price","bid_price","bid_amount"]
[1747617593545,10.782,2421.7,2421.0,11.6048]
[1747617593746,4.12950115,2421.6,2421.0,11.6048]
[1747617594191,4.13032361,2421.2,2421.0,11.6048]
[1747617594393,0.7979,2422.0,2421.1,0.55]
[1747617594547,4.1283078,2422.3,2421.1,8.0]
[1747617594744,4.1283078,2422.3,2421.2,10.796]
[1747617594949,4.1283078,2422.3,2421.1,10.66478]
[1747617594950,4.13035397,2421.1,2421.0,0.8088]
[1747617595259,4.13052457,2421.0,2420.9,17.839]
[1747617598188,4.13086582,2420.8,2420.7,10.796]
[1747617598387,4.13103647,2420.7,2420.6,0.8237]
[1747617598553,4.13061525,2421.0,2420.2,18.6549]
[1747617598901,10.68,2421.1,2420.3,10.796]
[1747617598902,4.13120713,2420.6,2420.3,10.796]
[1747617599489,4.13104271,2420.7,2420.3,10.796]
[1747617599688,10.68,2421.1,2420.2,18.6549]
[1747617599871,4.1317192,2420.3,2420.2,17.838]
[1747617600289,4.13233335,2420.0,2419.8,1.1212908]
[1747617600466,4.13135617,2420.6,2419.9,10.796]
[1747617600663,8.0,2420.9,2420.0,1.23304847]
[1747617600864,10.634,2421.2,2420.5,4.13126983]
[1747617601067,4.13025529,2421.2,2420.6,11.6129]
[1747617601279,4.12957328,2421.6,2420.6,11.6129]
[1747617601280,4.12925152,2421.8,2421.2,4.13008663]
[1747617601588,4.13035397,2421.1,2421.0,10.796]
[1747617601749,4.12898963,2421.9,2421.0,10.796]
[1747617601955,4.1299385,2421.4,2420.6,0.8169]
[1747617602202,4.13005552,2421.3,2420.7,10.796]
[1747617602483,4.13080269,2420.9,2420.7,10.796]
[1747617603188,4.13080269,2420.9,2420.2,11.5913]
[1747617603189,4.1317192,2420.3,2420.2,11.5913]
[1747617603388,10.632,2421.0,2420.2,11.5913]
[1747617603552,4.13131781,2420.6,2420.3,0.04131531]
[1747617603752,10.632,2421.0,2420.2,11.5913]
[1747617603987,4.13117127,2420.7,2420.2,11.5913]
[1747617604147,4.13125926,2420.6,2420.2,11.5913]
[1747617604349,4.13147587,2420.5,2420.3,10.796]
[1747617604549,4.13074629,2420.9,2420.3,10.796]
[1747617604789,4.13058284,2421.0,2420.4,0.04131118]
[1747617605099,4.13012386,2421.3,2420.7,4.13097514]
[1747617605384,8.0,2421.8,2420.9,4.13066025]
[1747617605548,10.592,2421.7,2421.0,10.797]
[1747617605750,4.13043818,2421.1,2421.0,10.797]
[1747617605985,4.13014179,2421.3,2421.0,10.797]
[1747617606189,10.58,2421.8,2421.1,0.04129857]
[1747617606408,4.12864869,2422.1,2421.2,0.8201]
[1747617606600,10.582,2422.2,2421.3,0.55]
[1747617606763,4.1290336,2421.9,2421.3,4.67994009]
[1747617607093,10.567,2422.2,2421.4,0.96301043]
[1747617607298,10.567,2422.2,2421.2,0.8201]
[1747617607462,4.1300128,2421.3,2421.2,0.8201]
[1747617607662,4.1300128,2421.3,2421.2,11.6171]
[1747617607899,4.13042166,2421.1,2420.8,0.8255]
[1747617608108,11.3229,2421.7,2420.9,10.797]
[1747617608311,4.13037777,2421.1,2420.9,10.797]
[1747617608463,4.12982216,2421.5,2421.0,4.1305242]
[1747617608662,10.553,2421.7,2421.1,0.04130052]
[1747617608869,4.13010568,2421.3,2420.9,2.94615]
[1747617609071,4.12986454,2421.4,2420.8,0.8255]
[1747617609271,4.13131852,2420.6,2420.4,11.5698]
[1747617609470,4.1310521,2420.7,2420.5,10.795]
[1747617609711,4.13120713,2420.6,2420.5,10.795]
[1747617609919,4.13078653,2420.9,2420.5,10.795]
[1747617610202,10.545,2421.0,2420.5,10.795]
[1747617610203,4.13087354,2420.8,2420.5,10.795]
[1747617610702,10.53,2421.1,2420.5,10.795]
[1747617611026,4.13198469,2420.2,2420.1,0.8011]
[1747617611389,4.13090681,2420.8,2420.1,11.5971]
[1747617611711,4.13149247,2420.5,2420.1,11.5971]
[1747617611911,4.13018338,2421.2,2420.2,7.11660251]
[1747617612218,4.13049162,2421.1,2420.5,4.68129327]
[1747617612511,4.12967169,2421.5,2420.5,0.55]
[1747617612717,4.12968892,2421.5,2420.2,2.94341]
[1747617612887,4.12968892,2421.5,2420.4,0.55]
[1747617613214,4.13048473,2421.1,2420.5,4.13136635]
[1747617613414,4.13048473,2421.1,2420.6,10.487]
[1747617613603,10.479,2421.6,2420.7,1.3009]
[1747617613802,0.7975,2422.2,2420.9,0.55]
[1747617613997,0.7975,2422.2,2420.8,1.17879]
[1747617613998,4.92611679,2422.2,2421.1,0.55]
[1747617614215,10.48,2422.1,2421.0,17.838]
[1747617614391,10.48,2422.1,2420.7,8.7509]
[1747617614392,4.13086582,2420.8,2420.7,0.7509]
[1747617614593,4.13112242,2420.7,2420.5,10.487]
[1747617614924,10.486,2421.2,2420.5,13.7266251]
[1747617615218,10.486,2421.2,2420.3,18.605]
[1747617615219,4.13131076,2420.6,2420.3,18.605]
[1747617615416,4.1315485,2420.4,2420.3,18.605]
[1747617615584,4.13102846,2420.8,2420.3,29.092]
[1747617615905,10.486,2421.2,2420.3,29.092]
[1747617616127,4.1315485,2420.4,2419.9,0.7598]
[1747617616279,4.1322314,2420.0,2419.9,0.7598]
[1747617616478,4.1322314,2420.0,2419.9,11.2468]
[1747617616673,6.8968,2421.0,2419.9,1.88448]
[1747617616918,14.60241213,2421.1,2420.0,10.487]
[1747617617121,4.13052457,2421.0,2419.9,1.88448]
[1747617617331,4.13052457,2421.0,2419.5,18.6656]
[1747617617332,4.13266633,2419.8,2419.5,18.6656]
[1747617617478,4.13274372,2419.7,2419.6,10.487]
[1747617617678,4.13265352,2419.8,2419.6,10.487]
[1747617618104,4.13274372,2419.7,2419.5,18.6656]
[1747617618416,4.13291453,2419.6,2419.5,17.838]
[1747617618791,4.13291453,2419.6,2419.4,10.487]
[1747617618792,4.13376875,2419.1,2419.0,10.487]
[1747617619113,4.13274372,2419.7,2419.1,4.13376826]
[1747617619114,4.13284629,2419.7,2419.1,4.13376826]
[1747617619286,4.13311059,2419.5,2419.1,0.55]
[1747617619610,0.8224,2420.3,2419.1,0.55]
[1747617619810,0.47954134,2420.5,2419.3,0.55]
[1747617620037,10.92954134,2420.5,2419.5,0.55]
[1747617620235,10.92954134,2420.5,2419.2,0.7797]
[1747617620520,4.13281738,2419.7,2419.2,0.7797]
[1747617620689,0.8224,2420.2,2419.3,0.55]
[1747617620876,0.86318647,2420.5,2419.3,0.55]
[1747617620877,4.13216617,2420.1,2419.5,4.13301766]
[1747617621080,11.34518647,2420.5,2419.6,17.842]
[1747617621439,4.13337967,2419.4,2419.3,10.489]
[1747617621935,4.13169562,2420.4,2419.3,10.489]
[1747617621936,4.13259223,2419.8,2419.3,10.489]
[1747617622099,10.473,2419.8,2419.4,1.12687]
[1747617622303,4.13393964,2419.0,2418.9,17.842]
[1747617622532,4.13388926,2419.1,2418.9,17.842]
[1747617622806,4.13233881,2420.0,2419.4,4.13309934]
[1747617623102,4.13233881,2420.0,2419.5,0.8106]
[1747617623322,4.13198473,2420.2,2419.6,11.53436993]
[1747617623640,0.47954134,2420.5,2419.7,8.0]
[1747617623641,4.61093465,2420.5,2419.7,8.0]
[1747617623814,0.47954134,2420.5,2420.2,4.13178892]
[1747617624135,0.47954134,2420.5,2420.3,14.62170298]
[1747617624302,0.47954134,2420.5,2420.4,2.0121703]
[1747617624504,0.47954134,2420.5,2420.4,6.9493188]
[1747617624733,0.47954134,2420.5,2420.4,17.4363188]
[1747617624940,0.47954134,2420.5,2420.4,11.2956]
[1747617626000,0.47954134,2420.5,2420.4,23.9771485]
[1747617626443,0.6328096,2420.7,2420.6,5.50800713]
[1747617626807,6.15357378,2421.6,2421.0,4.13036378]
[1747617627044,6.15357378,2421.6,2421.1,28.331]
[1747617627339,4.12957947,2421.6,2421.1,31.99020387]
[1747617627836,4.12898963,2421.9,2421.1,36.12051598]
[1747617628006,0.7739,2422.2,2421.3,0.8268]
[1747617628203,4.1290868,2421.9,2421.4,4.12982798]
[1747617628424,4.12926582,2421.8,2421.3,0.8268]
[1747617628745,0.7739,2422.5,2421.4,0.55068921]
[1747617628962,0.7739,2422.5,2421.5,4.12967169]
[1747617628963,4.128639,2422.2,2421.5,4.12967169]
[1747617629133,2.65680391,2422.6,2421.9,4.12898466]
[1747617629453,2.65680391,2422.6,2421.6,11.039]
[1747617629454,4.12874264,2422.1,2421.6,4.12947566]
[1747617629651,4.12816953,2422.4,2422.0,10.488]
[1747617629859,4.12864869,2422.1,2422.0,10.488]
[1747617630225,4.12778534,2422.7,2422.0,10.488]
[1747617630444,0.38397669,2423.0,2422.1,0.82718131]
[1747617630631,10.417,2423.6,2422.3,4.1283078]
[1747617630834,10.417,2423.6,2422.2,0.55]
[1747617631062,4.12771965,2422.7,2422.2,0.55]
[1747617631245,6.78328913,2423.4,2422.2,4.03412763]
[1747617631627,4.12738326,2422.9,2422.3,4.1283078]
[1747617632027,4.12677451,2423.2,2422.2,3.48412763]
[1747617632335,4.12677451,2423.2,2422.1,0.7859]
[1747617632336,4.12813738,2422.4,2422.3,10.485]
[1747617632530,4.12864869,2422.1,2422.0,17.84]
[1747617632834,4.12749722,2422.8,2421.7,10.485]
[1747617632835,4.12916012,2421.8,2421.7,10.485]
[1747617633249,4.12967169,2421.5,2421.4,0.7761]
[1747617633447,4.12967169,2421.5,2421.3,28.321]
[1747617633448,4.12984224,2421.4,2421.3,10.485]
[1747617633648,4.13052457,2421.0,2420.9,10.485]
[1747617634271,4.12792374,2422.6,2420.9,10.485]
[1747617634272,0.7526,2421.8,2420.9,15.66415051]
[1747617634563,4.1298255,2421.5,2421.1,0.7652]
[1747617634765,10.404,2422.0,2421.1,0.7652]
[1747617635064,4.13000039,2421.4,2421.2,10.486]
[1747617635266,4.13029924,2421.2,2420.8,0.7652]
[1747617635456,4.13011448,2421.3,2420.9,10.486]
[1747617635854,4.12969866,2421.5,2420.9,10.486]
[1747617636068,4.13015746,2421.3,2420.9,10.486]
[1747617636370,4.12936142,2421.7,2421.0,10.486]
[1747617636542,4.13035397,2421.1,2421.0,10.486]
[1747617636879,14.49989252,2421.4,2420.6,28.322]
[1747617637059,4.13120713,2420.6,2420.5,10.486]
[1747617637262,4.13103647,2420.7,2420.3,10.486]
[1747617637263,4.13171555,2420.4,2420.3,10.486]
[1747617640957,10.293,2420.4,2419.2,11.4697]
[1747617641162,4.13336626,2419.4,2419.2,11.4697]
[1747617641358,0.7987,2420.8,2419.2,11.4697]
[1747617641667,4.13250735,2419.9,2419.4,0.55]
[1747617641834,4.13137781,2420.5,2419.4,0.55]
[1747617642034,4.1317192,2420.3,2419.4,0.55]
[1747617642242,4.13280707,2419.7,2419.4,0.55]
[1747617642442,4.13293449,2419.6,2419.5,10.487]
[1747617643373,4.13300047,2419.6,2419.4,10.487]
[1747617643671,4.13308534,2419.5,2419.4,10.297]
[1747617644650,4.13285592,2419.7,2419.4,10.297]
[1747617644850,4.13183236,2420.3,2419.5,1.35583129]
[1747617645159,0.7749,2420.5,2419.6,17.841]
[1747617645355,0.7749,2420.5,2419.7,10.298]
[1747617645356,4.13266766,2419.8,2419.7,10.298]
[1747617645680,4.13236801,2420.0,2419.7,10.298]
[1747617645890,0.7749,2420.5,2419.6,17.841]
[1747617646050,0.7749,2420.5,2419.6,28.139]
[1747617646051,4.13274372,2419.7,2419.6,28.139]
[1747617646749,4.13274372,2419.7,2419.6,17.841]
[1747617646955,4.13259663,2419.8,2419.2,0.23]
[1747617646956,4.13342702,2419.3,2419.2,0.23]
[1747617647402,4.13428146,2418.8,2418.7,10.299]
[1747617647985,4.13418642,2418.9,2418.7,10.299]
[1747617648186,4.13428146,2418.8,2418.7,10.299]
[1747617648378,4.13425328,2418.9,2418.7,10.299]
[1747617648552,4.13428146,2418.8,2418.7,10.299]
[1747617649097,4.13530725,2418.2,2418.1,0.85000697]
[1747617650972,14.33930725,2418.2,2418.1,0.85000697]
[1747617651516,4.13564929,2418.0,2417.9,10.299]
[1747617652114,4.13633355,2417.6,2417.5,17.843]
[1747617652269,4.13650465,2417.5,2417.4,0.23]
[1747617653989,4.91870465,2417.5,2417.4,0.23]
[1747617654709,14.30450465,2417.5,2417.4,0.23]
[1747617655171,10.168,2417.5,2417.4,0.23]
[1747617655367,4.13479429,2418.5,2417.5,4.13635332]
[1747617655564,10.156,2418.4,2417.6,11.56979709]
[1747617655771,10.156,2418.4,2417.6,11.52843533]
[1747617655969,14.291031,2418.4,2417.6,11.52843533]
[1747617656201,14.291031,2418.4,2417.6,11.0918]
[1747617656503,4.13552857,2418.1,2417.6,11.0918]
[1747617656697,4.13552857,2418.1,2417.6,15.228131]
[1747617656927,4.13530725,2418.2,2417.4,0.23]
[1747617657204,4.13650465,2417.5,2417.4,0.23]
[1747617657418,14.30750465,2417.5,2417.4,0.23]
[1747617659216,4.13650465,2417.5,2417.4,0.23]
[1747617659512,14.27050465,2417.5,2417.4,0.23]
[1747617659707,4.91319081,2417.8,2417.4,0.23]
[1747617659708,4.91322165,2417.8,2417.4,0.23]
[1747617659912,10.134,2417.6,2417.4,0.23]
[1747617660209,4.13650465,2417.5,2417.4,0.23]
[1747617661119,10.12,2418.0,2417.4,0.23]
[1747617661414,4.13650465,2417.5,2417.4,0.23]
[1747617661919,4.13638965,2417.6,2417.4,0.23]
[1747617662274,0.8007,2418.6,2417.6,0.7772]
[1747617662514,0.8007,2418.6,2417.7,1.45399964]
[1747617662515,10.116,2418.2,2417.7,1.45399964]
[1747617662817,0.8287,2419.1,2417.8,18.20626536]
[1747617662984,10.128,2419.3,2418.1,0.55]
[1747617663179,10.125,2419.4,2418.9,4.13407413]
[1747617663421,10.124,2419.4,2419.0,10.35133804]
[1747617663713,4.13479429,2418.5,2418.4,11.1061]
[1747617664013,10.15,2419.2,2418.4,11.92371052]
[1747617664307,10.15,2419.2,2418.4,12.26889022]
[1747617664481,4.13424108,2418.9,2418.4,12.26889022]
[1747617664684,10.157,2419.4,2418.5,0.55]
[1747617664927,10.157,2419.4,2418.6,1.28188902]
[1747617665247,4.13406617,2419.0,2418.5,8.55]
[1747617665391,4.1336279,2419.2,2418.7,4.13445092]
[1747617665778,4.1327806,2419.7,2419.0,0.8182]
[1747617665983,10.154,2420.1,2419.2,12.13359788]
[1747617666178,10.154,2420.1,2419.5,0.55]
[1747617666382,4.1323472,2420.0,2419.6,10.308]
[1747617666597,4.13308534,2419.5,2419.4,0.8182]
[1747617666793,4.13310891,2419.5,2419.3,10.308]
[1747617666998,10.167,2420.4,2419.4,1.3518]
[1747617667411,4.13208471,2420.1,2419.4,9.3518]
[1747617667600,4.13199572,2420.2,2419.4,13.48502783]
[1747617667932,4.13189709,2420.2,2419.6,4.13291453]
[1747617668100,4.13215715,2420.1,2419.6,17.856]
[1747617668300,10.949,2420.6,2419.9,0.7915]
[1747617668301,4.13120713,2420.6,2419.9,0.7915]
[1747617668513,4.13148963,2420.5,2420.0,10.306]
[1747617668707,10.143,2420.8,2420.0,10.306]
[1747617668922,14.27402113,2420.8,2420.1,4.17326703]
[1747617669127,4.13108098,2420.7,2420.2,0.55]
[1747617669324,4.13082475,2420.9,2420.3,4.13171805]
[1747617669528,14.25822498,2421.2,2420.3,0.8309]
[1747617669723,4.13064075,2421.0,2420.4,4.13148522]
[1747617669931,10.128,2421.2,2420.3,0.8309]
[1747617670336,4.13137781,2420.5,2420.4,10.306]
[1747617670853,4.1315485,2420.4,2419.8,0.7632]
[1747617671014,4.13214932,2420.1,2419.8,11.0692]
[1747617671206,4.13206494,2420.1,2419.8,11.0692]
[1747617671403,10.13,2420.6,2419.8,13.96172]
[1747617671609,10.133,2420.9,2419.9,8.55]
[1747617671946,4.44376162,2421.6,2420.6,0.55]
[1747617671947,4.12963573,2421.6,2420.6,0.55]
[1747617672114,4.1292523,2421.8,2421.2,4.13017111]
[1747617672444,4.76138404,2422.2,2421.2,4.13017111]
[1747617672445,0.6328096,2422.2,2421.4,8.0]
[1747617672766,0.6328096,2422.2,2421.6,0.55]
[1747617672907,4.12860715,2422.2,2421.7,18.23699298]
[1747617673106,4.12898963,2421.9,2421.8,10.6486951]
[1747617673347,4.12808036,2422.5,2421.8,10.6486951]
[1747617673517,14.26185104,2422.6,2421.8,10.304]
[1747617673715,4.12686348,2423.2,2421.8,13.1195]
[1747617673920,4.12686348,2423.2,2421.8,17.24863503]
[1747617673921,10.126,2422.5,2421.8,17.24863503]
[1747617674134,10.7598096,2423.3,2421.9,8.04128353]
[1747617674335,10.7598096,2423.3,2421.8,13.1195]
[1747617674336,4.12864869,2422.1,2422.0,0.34466664]
[1747617674638,4.12823046,2422.4,2422.0,0.34466664]
[1747617674833,4.12833559,2422.3,2422.0,2.1914333]
[1747617675159,4.12837336,2422.3,2422.0,2.1914333]
[1747617675323,14.25769305,2422.7,2422.1,0.34465241]
[1747617675528,0.8228,2423.3,2422.3,0.8011]
[1747617675765,0.8228,2423.3,2422.4,10.50888488]
[1747617675947,4.12779658,2422.6,2422.5,0.3445955]
[1747617676139,14.24785972,2423.2,2422.5,0.3445955]
[1747617676338,4.12759348,2422.8,2422.5,0.3445955]
[1747617676538,4.12742341,2422.9,2422.5,0.3445955]
[1747617676733,4.12746082,2422.8,2422.5,0.3445955]
[1747617676972,4.12617563,2423.6,2422.6,18.389]
[1747617677262,4.12624386,2423.6,2422.9,0.7912]
[1747617677561,4.12524235,2424.1,2423.0,10.46452439]
[1747617677789,4.12524235,2424.1,2423.1,0.89451017]
[1747617677928,4.12619244,2423.6,2423.2,0.34449595]
[1747617678132,4.12628492,2423.5,2423.2,1.85864637]
[1747617678666,4.1259461,2423.7,2423.3,0.5912606]
[1747617678960,4.12566998,2423.9,2423.4,0.34446752]
[1747617679178,4.12566998,2423.9,2423.5,10.12]
[1747617679179,4.12585694,2423.8,2423.5,10.12]
[1747617679330,4.12609341,2423.6,2422.7,8.0]
[1747617679528,4.12677451,2423.2,2423.1,10.12]
[1747617680548,4.12711514,2423.0,2422.5,1.54222695]
[1747617680755,4.1276262,2422.7,2422.5,1.12885755]
[1747617681062,4.1276262,2422.7,2422.6,27.955]
[1747617682023,14.1896262,2422.7,2422.1,0.8131]
[1747617682224,4.12807792,2422.5,2422.1,12.79361]
[1747617682463,10.062,2422.9,2422.3,0.55]
[1747617682780,0.7962,2423.4,2422.3,0.55]
[1747617682781,4.12648517,2423.4,2422.7,0.55]
[1747617682930,8.0,2423.5,2422.8,27.948]
[1747617683124,4.12626366,2423.5,2422.8,27.948]
[1747617683381,4.12582761,2423.8,2423.1,0.55]
[1747617683674,4.12582761,2423.8,2422.9,3.44106569]
[1747617683675,4.12537726,2424.1,2423.3,0.55]
[1747617683828,4.12568078,2423.9,2423.4,10.115]
[1747617684047,0.7953,2424.9,2423.7,0.55]
[1747617684239,4.12558273,2423.9,2423.8,27.946]
[1747617684481,4.12517001,2424.2,2423.8,27.946]
[1747617684787,4.12558273,2423.9,2423.7,10.115]
[1747617685081,14.18675294,2423.8,2423.7,10.115]
[1747617685682,4.12660421,2423.3,2423.2,10.948]
[1747617685879,18.061,2424.0,2423.2,13.8259]
[1747617686084,0.8311,2424.6,2423.3,4.67653811]
[1747617686394,6.12,2425.1,2423.2,13.8259]
[1747617686395,10.061,2424.7,2423.7,0.55]
[1747617686685,160.8311,2425.0,2423.9,0.55]
[1747617686686,4.12500009,2424.3,2423.9,0.55]
[1747617686860,4.12500009,2424.3,2424.0,17.827]
[1747617687062,4.12422155,2424.7,2424.0,17.827]
[1747617687248,4.12405146,2424.8,2424.0,20.621]
[1747617687448,4.12499801,2424.3,2424.0,20.621]
[1747617687685,4.12524235,2424.1,2424.0,17.827]
[1747617687898,4.12513438,2424.2,2424.0,17.827]
[1747617688184,4.12514114,2424.2,2424.1,10.113]
[1747617688382,168.8311,2425.0,2424.2,0.7998]
[1747617688383,8.0,2424.9,2424.2,0.7998]
[1747617688686,4.12439165,2424.6,2424.2,0.7998]
[1747617688853,4.12490203,2424.3,2424.2,0.7998]
[1747617689053,4.12480333,2424.4,2424.2,1.14415385]
[1747617689461,4.12490203,2424.3,2424.2,1.14415385]
[1747617689675,4.07490203,2424.3,2424.2,1.14415385]
[1747617689986,4.07490203,2424.3,2424.2,11.25515385]
[1747617690151,4.07490203,2424.3,2424.2,10.45535385]
[1747617691586,4.12490203,2424.3,2424.2,10.45535385]
[1747617691956,4.12490203,2424.3,2424.2,10.111]
[1747617692650,4.12480256,2424.4,2424.2,10.111]
[1747617692851,4.88938695,2425.4,2424.2,10.111]
[1747617692852,5.19863379,2425.4,2424.2,10.111]
[1747617693048,4.12490203,2424.3,2424.2,10.111]
[1747617694255,4.12476983,2424.4,2424.2,12.38876912]
[1747617694603,4.12476983,2424.4,2424.2,10.111]
[1747617694762,4.12490203,2424.3,2424.2,10.111]
[1747617695856,10.054,2424.8,2424.2,10.111]
[1747617696064,160.0,2425.0,2424.2,10.111]
[1747617696065,164.1237517,2425.0,2424.4,0.798]
[1747617696405,4.12441463,2424.6,2424.4,0.798]
[1747617696621,160.0,2425.0,2424.1,0.55]
[1747617696622,4.124901,2424.4,2424.1,0.55]
[1747617696825,4.12490203,2424.3,2424.2,10.108]
[1747617697181,160.0,2425.0,2424.2,10.108]
[1747617697380,4.1245222,2424.6,2424.3,0.55]
[1747617697622,4.1245222,2424.6,2424.0,22.75033449]
[1747617697623,4.12524235,2424.1,2424.0,18.625]
[1747617697795,4.12524235,2424.1,2424.0,28.27938226]
[1747617698400,4.12524235,2424.1,2424.0,0.34438226]
[1747617698801,12.12524235,2424.1,2424.0,0.34438226]
[1747617698999,12.91884235,2424.1,2424.0,0.34438226]
[1747617700691,22.96884235,2424.1,2424.0,0.34438226]
[1747617701896,12.91884235,2424.1,2424.0,0.34438226]
[1747617702096,4.12524235,2424.1,2424.0,0.34438226]
[1747617702330,4.12524235,2424.1,2424.0,1.38962049]
[1747617702486,4.12524235,2424.1,2424.0,0.34438226]
[1747617703836,12.12524235,2424.1,2424.0,0.34438226]
[1747617704187,4.1260937,2423.6,2423.3,27.865]
[1747617704486,8.0,2424.0,2423.3,27.865]
[1747617704688,4.12617651,2423.6,2423.3,27.865]
[1747617705020,4.12643393,2423.4,2423.3,27.865]
[1747617705223,4.12643393,2423.4,2423.3,17.816]
[1747617705523,10.882,2423.6,2422.9,10.049]
[1747617705707,10.882,2423.6,2422.6,18.6157]
[1747617705708,8.0,2423.6,2423.0,11.0539]
[1747617706023,4.1257766,2423.8,2423.1,4.6769009]
[1747617706231,4.12609341,2423.6,2423.1,0.55]
[1747617706429,4.12656584,2423.4,2423.1,0.55]
[1747617706636,4.12694482,2423.1,2423.0,11.6039]
[1747617706790,4.12694482,2423.1,2423.0,10.049]
[1747617707194,8.0,2423.7,2423.0,10.049]
[1747617707390,4.12650547,2423.4,2423.0,10.049]
[1747617707591,4.1245473,2424.6,2423.0,10.049]
[1747617707592,10.048,2423.6,2423.1,0.55]
[1747617707897,10.048,2423.6,2423.3,0.55]
[1747617708199,4.12499069,2424.3,2423.3,0.55]
[1747617708531,4.12556672,2424.0,2423.5,0.55]
[1747617708741,4.12507218,2424.2,2423.6,10.05]
[1747617708935,4.12592317,2423.7,2423.6,10.6]
[1747617709138,8.0,2424.2,2423.6,10.6]
[1747617709340,4.12592317,2423.7,2423.6,10.05]
[1747617709538,4.12609341,2423.6,2423.5,17.817]
[1747617709830,12.12609341,2423.6,2423.5,17.817]
[1747617710032,4.12643393,2423.4,2423.1,10.05]
[1747617710189,4.12686824,2423.2,2422.8,17.817]
[1747617710395,4.12686824,2423.2,2422.9,10.05]
[1747617710643,10.048,2423.2,2422.9,10.05]
[1747617710795,4.12728548,2422.9,2422.8,17.817]
[1747617710998,4.12728548,2422.9,2422.8,27.867]
[1747617711612,4.12728548,2422.9,2422.4,0.7534]
[1747617711814,4.12916012,2421.8,2421.7,0.7534]
[1747617712036,4.12950115,2421.6,2421.5,10.05]
[1747617712531,0.7736,2422.1,2421.5,10.05]
[1747617712721,8.0,2421.8,2421.5,10.05]
[1747617712922,4.12950115,2421.6,2421.5,10.05]
[1747617713107,12.12899404,2421.9,2421.5,10.05]
[1747617713307,4.12950115,2421.6,2421.5,10.05]
[1747617715394,4.12940686,2421.7,2421.5,10.05]
[1747617715547,4.12948758,2421.7,2421.5,10.05]
[1747617715747,12.12950115,2421.6,2421.5,10.05]
[1747617715952,4.13035397,2421.1,2421.0,0.23]
[1747617716515,12.13035397,2421.1,2421.0,0.23]
[1747617716925,8.0,2421.1,2421.0,0.23]
[1747617717547,12.13035397,2421.1,2421.0,0.23]
[1747617717948,10.05,2421.4,2421.0,0.23]
[1747617718118,10.05,2421.7,2421.1,1.3285]
[1747617718318,4.12960705,2421.6,2421.1,1.3285]
[1747617718516,14.17916666,2421.8,2421.2,4.13005268]
[1747617718715,4.12933927,2421.7,2421.3,0.55]
[1747617718944,4.1294061,2421.7,2421.3,0.55]
[1747617719479,4.12940828,2421.7,2421.1,10.056]
[1747617719627,14.17960641,2421.6,2421.1,14.18634463]
[1747617719938,4.13010397,2421.3,2421.1,10.056]
[1747617720135,4.12972601,2421.5,2421.1,10.056]
[1747617720361,4.13035397,2421.1,2421.0,0.23]
[1747617720567,0.7928,2420.7,2419.4,0.23]
[1747617720791,8.0,2420.5,2419.4,0.23]
[1747617721062,20.8998,2420.6,2419.4,10.286]
[1747617721063,8.0,2420.3,2419.4,10.286]
[1747617721264,0.7928,2420.6,2419.5,4.9337191]
[1747617721562,4.13187591,2420.3,2419.5,14.23026774]
[1747617721763,4.13188992,2420.2,2419.5,10.8769]
[1747617721971,10.051,2420.5,2419.5,10.059]
[1747617722169,4.1315485,2420.4,2419.7,4.95364372]
[1747617722330,0.7663,2421.1,2419.9,4.13240216]
[1747617722650,4.13052659,2421.0,2420.4,4.95233682]
[1747617722851,0.7663,2421.4,2420.4,4.95233682]
[1747617722852,10.054,2421.1,2420.5,10.059]
[1747617723171,0.7663,2421.4,2420.6,0.55]
[1747617723332,10.054,2421.5,2420.8,4.13072442]
[1747617723664,4.13002831,2421.3,2420.7,4.1309404]
[1747617723965,4.13003413,2421.3,2420.7,5.96297571]
[1747617724154,4.12950115,2421.6,2420.5,10.059]
[1747617724339,4.13005194,2421.3,2420.5,10.059]
[1747617724546,4.13005194,2421.3,2420.4,10.059]
[1747617724547,0.7663,2421.3,2420.4,10.059]
[1747617724733,4.13062561,2421.0,2420.4,10.059]
[1747617724940,8.0,2421.4,2420.9,0.8153]
[1747617724941,10.054,2421.4,2420.9,0.8153]
[1747617725139,10.054,2421.9,2421.1,0.55]
[1747617725348,10.054,2421.9,2421.2,17.835]
[1747617725667,4.1300128,2421.3,2421.2,17.835]
[1747617725852,14.18399648,2421.4,2420.9,10.8753]
[1747617726230,4.13001449,2421.3,2420.9,10.8753]
[1747617726431,10.054,2421.6,2420.9,12.37592661]
[1747617726639,4.12930459,2421.8,2421.0,0.55]
[1747617726839,2.02399431,2422.4,2421.2,0.55]
[1747617727141,7.5188936,2422.1,2421.6,0.7584]
[1747617727340,7.5188936,2422.1,2421.8,4.12910891]
[1747617727584,6.15216316,2422.4,2421.7,10.06]
[1747617727585,4.12916012,2421.8,2421.7,10.06]
[1747617727784,10.054,2422.4,2421.7,10.06]
[1747617727981,8.0,2422.2,2421.6,10.06]
[1747617728189,4.12943657,2421.7,2421.6,10.059]
[1747617728540,14.1830276,2421.9,2421.6,10.059]
[1747617728740,10.054,2421.9,2421.6,10.059]
[1747617728952,4.12871128,2422.1,2421.6,10.059]
[1747617729178,10.053,2422.4,2421.7,4.12929271]
[1747617729339,14.18097569,2422.5,2421.9,4.12883947]
[1747617729735,8.8028,2422.9,2422.1,0.55]
[1747617729736,0.8028,2422.9,2422.1,0.55]
[1747617729935,4.12731749,2422.9,2422.2,14.18736474]
[1747617730174,4.12661775,2423.3,2422.5,4.12781722]
[1747617730401,4.07689106,2423.2,2422.6,4.12775219]
[1747617730573,4.12696507,2423.1,2422.7,10.059]
[1747617730752,8.0,2423.4,2422.5,17.834]
[1747617730947,14.17871616,2423.3,2422.6,10.058]
[1747617731152,4.12760447,2422.8,2422.6,10.058]